{"text_format":"1","workbook":"xlsx","n_sheets":2,"sheets":["HF申込書(2019)","Sheet1"],"not_rendered":{"charts":0,"images":0,"macros":1,"external_links":0,"defined_names":13,"comments":1,"pivot_tables":0},"unopened":[],"bounds":{"document_bytes":16777216,"sheet_cells":100000,"rows_first":2000,"rows_last":500,"rows_between":2000,"halvings":0,"cell_chars":16384,"cell_head_chars":4096},"cells_cut":0,"cells_raw":0,"read":"whole","date_system":"1904"}

{"sheet":"HF申込書(2019)","index":0,"n_rows":77,"n_cols":28,"rows_kept":77,"cut":false,"hidden":false,"merged":[[30,6,30,8],[61,9,62,9],[61,10,62,10],[63,9,64,9],[30,0,30,2],[50,0,51,0],[53,0,54,0],[63,10,64,10],[22,1,22,2],[24,1,24,2],[25,1,25,2],[27,1,27,2],[30,3,30,5],[23,1,23,2],[26,1,26,2],[0,0,0,10],[5,0,5,10],[20,1,20,2],[21,1,21,2],[20,4,20,10],[65,0,68,8],[61,0,64,8],[65,10,66,10],[67,10,68,10],[67,9,68,9],[65,9,66,9],[69,0,72,8],[73,0,73,8],[74,0,76,8],[69,9,70,9],[69,10,70,10],[71,9,72,9],[71,10,72,10]]}
["第14回　JBGホースフェスティバル　申込書（メール用）",null,null,null,null,null,null,null,null,null,null,"v02"]
[]
["日本社会人団体馬術連盟事務局宛"]
["E-mail：shabaren@jbg.jp"]
[]
["※団体窓口の負担軽減や運営などの都合上、原則として個人単位のエントリーとさせていただきます。団体でまとめて申込む場合も、申込書は個人につき１ファイルでお願い致します。"]
["※ファイル名の「JBG_HF2019_name.xlsm」のnameの部分を出場者氏名に変更して下さい。"]
["※複数名のエントリーフィーをまとめて振り込む際は、必ず全員分の名前を振込元名に記入して下さい。　さらに、必ず社馬連事務局に全員分の名前をお知らせ下さい。"]
["※非会員の申し込みの場合には、所属団体記載欄に紹介者の所属する団体名を選択ください。"]
["※保険加入の欄には「何らかのスポーツ団体傷害保険」の加入の有無を記入してください。"]
["※申込み方法の詳細については、「第14回JBGホースフェスティバル」サイト（http://www.jbg.jp/hf/）をご参照下さい。"]
["※社馬連加盟団体の会員であり、個人で社馬連騎乗者資格を有していないかたは会員/非会員にて\"会員（社馬連資格未登録）\"を選択してください"]
["※会員（社馬連資格未登録）または非会員は所有資格欄にて社馬連相当資格を選択してください"]
["※会員（社馬連資格未登録）で、D'資格の同時申請を行う方は、「資格申請」欄で\"申請する\"を選択し、会員/非会員区分は\"会員（社馬連資格保有）\"を選択、所有資格は\"D'\"を選択ください。（資格申請料3,000円）"]
["※この申込書は、「所有資格」を入力する事で、自動的に入力制限が掛かりますのでご注意ください"]
["※競技馬の割り当てを行う際、体重を考慮させていただきますので、「70kg」を超過する方は、下記質問欄に記入をお願いします。"]
["※事故が発生した場合に備え、緊急連絡先の記載をお願い致します。（緊急連絡先については、個人情報を含みますので本大会の緊急時のみの利用とし大会終了後は速やかに削除致します）"]
["注）アップル（Mac）の、Microsoft Excel for Macをご利用の方は、入力の制御が正しく機能しない為、webからのエントリーをお願い致します。（webエントリーもできない方は、事務局までご相談下さい）"]
["webエントリーURL : https://jbg-app.mybluemix.net/horsefestival/top"]
["■出場者"]
["○氏名",null,null,null,"エントリー締切：5月13日（月）"]
["○フリガナ"]
["○性別",null,null,null,"★エントリーフィー振込先★"]
["○会員/非会員",null,null,null,"日本社会人団体馬術連盟"]
["○所属団体",null,null,null,"三井住友銀行　神田支店（普）１３００６９０"]
["○所有資格",null,null,null,"振込締切：6月14日（金）"]
["○連絡先E-mail"]
["○保険加入"]
[]
["■エントリー"]
[null,null,null,"社馬連資格保有",null,null,"社馬連資格未登録"]
["□6月29日（土）","競技名","複数参加","エントリー費","参加数","エントリー費","エントリー費","参加数","エントリー費","合計額","出場資格"]
["第１競技","部班馬場馬術競技  マスターズ班","不可",6000,null,{"$f":"D33*E33","v":0},8000,null,{"$f":"G33*H33","v":0},{"$f":"F33+I33","v":0},"社馬連資格はB'グレード以上（B'グレード相当以上）",null,null,null,null,null,null,{"$f":"IF(COUNTIF($S33:$AB33,$B$26),\"○\",\"×\")","v":"×"},"Ａ","Ｂ","Ｂ’",null,null,null,"社馬連Ｂ相当","社馬連Ｂ’相当"]
["第２競技","グリーンカップ　部班馬場馬術競技 速歩班","不可",4000,null,0,6000,null,{"$f":"G34*H34","v":0},0,"社馬連資格Ｃグレード以下（Cグレード相当以下）",null,null,null,null,null,null,"×",null,null,null,"Ｃ","Ｄ","Ｄ’",null,null,"社馬連Ｃ相当","無"]
["第３競技","グリーンカップ　部班馬場馬術競技 駈歩班","不可",4000,null,{"$f":"D35*E35","v":0},6000,null,0,0,"社馬連資格Ｃグレード以下（Cグレード相当以下）",null,null,null,null,null,null,"×",null,null,null,"Ｃ","Ｄ","Ｄ’",null,null,"社馬連Ｃ相当","無"]
["第４競技","グリーンカップ　JEF A2課目 2013","可",7000,null,0,9000,null,0,0,"社馬連資格C,B'Bグレード保有者で社馬連主要競技（全日本社会人馬術選手権大会、キャロット自馬選手権）の出場実績がないこと（C,B'B相当）",null,null,null,null,null,null,"×",null,"Ｂ","Ｂ’","Ｃ",null,null,"社馬連Ｂ相当","社馬連Ｂ’相当","社馬連Ｃ相当"]
["第５競技","JEF A3課目 2013　（一般班）","不可",9000,null,{"$f":"D37*E37","v":0},11000,null,{"$f":"G37*H37","v":0},{"$f":"F37+I37","v":0},"社馬連資格B'グレード以上（B'相当以上）",null,null,null,null,null,null,{"$f":"IF(COUNTIF($S37:$AB37,$B$26),\"○\",\"×\")","v":"×"},"Ａ","Ｂ","Ｂ’",null,null,null,"社馬連Ｂ相当","社馬連Ｂ’相当"]
["第６競技","FEI 総合馬術競技1スター 2015\n 馬場馬術課目A（一般班）","不可",9000,null,{"$f":"D38*E38","v":0},11000,null,{"$f":"G38*H38","v":0},{"$f":"F38+I38","v":0},"社馬連資格B'グレード以上（B'相当以上）",null,null,null,null,null,null,{"$f":"IF(COUNTIF($S38:$AB38,$B$26),\"○\",\"×\")","v":"×"},"Ａ","Ｂ","Ｂ’",null,null,null,"社馬連Ｂ相当","社馬連Ｂ’相当"]
["第７競技","FEI 総合馬術競技1スター 2015\n 馬場馬術課目A（ビギナー班）","可",9000,null,0,11000,null,0,0,"社馬連資格B',Bグレード（B',B相当）",null,null,null,null,null,null,{"$f":"IF(COUNTIF($S39:$AB39,$B$26),\"○\",\"×\")","v":"×"},null,"Ｂ","Ｂ’",null,null,null,"社馬連Ｂ相当","社馬連Ｂ’相当"]
["第８競技","パ・ド・ドゥ","不可",9000,null,{"$f":"D40*E40","v":0},11000,null,{"$f":"G40*H40","v":0},{"$f":"F40+I40","v":0},"社馬連資格Cグレード以上（Cグレード相当）。ペアでの出場が条件。\n全国乗馬倶楽部振興協会制定　レベルI（仮装は不可）",null,null,null,null,null,null,"×","Ａ","Ｂ","Ｂ’","Ｃ",null,null,"社馬連Ｂ相当","社馬連Ｂ’相当","社馬連Ｃ相当"]
["□6月30日（日）","競技名","複数参加","エントリー費","参加数","エントリー費","エントリー費","参加数","エントリー費","合計額","出場資格"]
["第９競技","ジムカーナペアリレー","不可",4000,null,{"$f":"D42*E42","v":0},6000,null,{"$f":"G42*H42","v":0},{"$f":"F42+I42","v":0},"社馬連資格Cグレード以上。（Cグレード相当以上）ペアでの出場が条件。男女でも同性でも可。",null,null,null,null,null,null,{"$f":"IF(COUNTIF($S42:$AB42,$B$26),\"○\",\"×\")","v":"×"},"Ａ","Ｂ","Ｂ’","Ｃ",null,null,"社馬連Ｂ相当","社馬連Ｂ’相当","社馬連Ｃ相当"]
["第１０競技","グリーンカップ　ジムカーナ速歩班","不可",4000,null,{"$f":"D43*E43","v":0},6000,null,{"$f":"G43*H43","v":0},{"$f":"F43+I43","v":0},"社馬連資格Ｃグレード以下（Ｃグレード相当以下）",null,null,null,null,null,null,{"$f":"IF(COUNTIF($S43:$AB43,$B$26),\"○\",\"×\")","v":"×"},null,null,null,"Ｃ","Ｄ","Ｄ’",null,null,"社馬連Ｃ相当","無"]
["第１１競技","グリーンカップ　ジムカーナ駈歩班","不可",4000,null,0,6000,null,0,0,"社馬連資格Ｃグレード以下（Ｃグレード相当以下）",null,null,null,null,null,null,"×",null,null,null,"Ｃ","Ｄ","Ｄ’",null,null,"社馬連Ｃ相当","無"]
["第１２競技","グリーンカップ\n　　ビギナーズジャンプ60cm","可",7000,null,0,9000,null,0,0,"社馬連資格C,B'グレード保有者(C,B'グレード相当)",null,null,null,null,null,null,"×",null,null,"Ｂ’","Ｃ",null,null,null,"社馬連Ｂ’相当","社馬連Ｃ相当"]
["第１３競技","小障害飛越80cm（ビギナー班）","可",9000,null,0,11000,null,0,0,"社馬連資格B’,Bグレード保有者(B’,Bグレード相当)で社馬連主要競技（全日本社会人馬術選手権大会、キャロット自馬選手権、実業団戦）への出場実績がないこと",null,null,null,null,null,null,"×",null,"Ｂ","Ｂ’",null,null,null,"社馬連Ｂ相当","社馬連Ｂ’相当"]
["第１４競技","小障害飛越80cm（一般班）","不可",9000,null,0,11000,null,0,0,"社馬連資格Ｂグレード以上（Ｂグレード相当以上）",null,null,null,null,null,null,"×","Ａ","Ｂ",null,null,null,null,"社馬連Ｂ相当"]
["第１５競技","ゴールデンカップ\n　　小障害飛越ペアリレー","不可",9000,null,{"$f":"D48*E48","v":0},11000,null,{"$f":"G48*H48","v":0},{"$f":"F48+I48","v":0},"社馬連資格Ｂグレード以上（Bグレード相当以上）\nペアでの出場が条件。また、男女ペア及び女女ペアの場合は４５歳以上を１名、男男ペアの場合は２名の合計が９０歳以上。",null,null,null,null,null,null,{"$f":"IF(COUNTIF($S48:$AB48,$B$26),\"○\",\"×\")","v":"×"},"Ａ","Ｂ",null,null,null,null,"社馬連Ｂ相当"]
[null,null,null,null,null,null,null,null,null,null,null,null,null,null,null,null,null,"×","Ａ","Ｂ",null,null,null,null,"社馬連Ｂ相当"]
[]
["参加費","1日のみ参加（29日か30日のみ参加）",null,2000,0,{"$f":"D51*E51","v":0},2000,{"$f":"IF(OR(AND(COUNTA(H$33:H$40)>=1,COUNTA(H$42:H$49)=0),AND(COUNTA(H$33:H$40)=0,COUNTA(H$42:H$49)>=1)),1,0)","v":0},{"$f":"G51*H51","v":0},{"$f":"F51+I51","v":0},"懇親会費は含みません"]
[null,"2日間参加（29日,30日とも参加）",null,3000,{"$f":"IF(AND(COUNTA(E$33:E$40)>=1,COUNTA(E$42:E$49)>=1),1,0)","v":0},{"$f":"D52*E52","v":0},3000,{"$f":"IF(AND(COUNTA(H$33:H$40)>=1,COUNTA(H$42:H$49)>=1),1,0)","v":0},{"$f":"G52*H52","v":0},0,"懇親会費を含みます"]
["懇親会費","懇親会費（29日開催）",null,1000,null,{"$f":"D53*E53","v":0},1000,null,{"$f":"G53*H53","v":0},0,"29日のみ参加で懇親会に参加される方は選択ください"]
["昼食弁当","昼食弁当（29日）　注文数を入力下さい",null,1000,null,{"$f":"D54*E54","v":0},1000,null,{"$f":"G54*H54","v":0},0]
[null,"昼食弁当（30日）　注文数を入力下さい",null,1000,null,{"$f":"D55*E55","v":0},1000,null,{"$f":"G55*H55","v":0},0]
["社馬連資格申請\n（Ｄ’グレード）","社馬連のD'グレードの申請",null,3000,null,{"$f":"IF(E56=\"申請\",D56,0)","v":0},null,null,null,0,"社馬連のD'グレードを申請される方は、\n会員・非会員→会員（社馬連資格保有）を選択し、\"申請\"を選択しください。その後所有資格→\"D'\"を選択してください。"]
[null,null,null,"合計金額",null,null,null,null,null,{"$f":"SUM(J33:J56)","v":0},"←振込合計金額"]
[]
["※第8,9,15競技のエントリー費は1名分ですので、各自エントリー費を計上してください。"]
["※お弁当を家族分など注文される方は購入個数をご記入下さい。"]
[]
["　第８競技パ・ドゥ・ドゥ参加者は、右の欄にペアの方の名前と所属を記入してください。",null,null,null,null,null,null,null,null,"氏名"]
[]
[null,null,null,null,null,null,null,null,null,"所属"]
[]
["　第９競技ジムカーナペアリレー参加者は、右の欄にペアの方の名前と所属を記入してください。",null,null,null,null,null,null,null,null,"氏名"]
[]
[null,null,null,null,null,null,null,null,null,"所属"]
[]
["　第１５競技ゴールデンカップ小障害飛越ペアリレー参加者は、右の欄にペアの方の名前と所属を記入してください。",null,null,null,null,null,null,null,null,"氏名"]
[]
[null,null,null,null,null,null,null,null,null,"所属"]
[]
["　体重が70kg以上ある方はチェックをお願いします（馬配の際に必要となります）",null,null,null,null,null,null,null,null,"選択"]
["事故が発生した際に連絡が取れる緊急連絡先を記入ください。（大会終了後に削除致します）",null,null,null,null,null,null,null,null,"氏名"]
[null,null,null,null,null,null,null,null,null,"続柄"]
[null,null,null,null,null,null,null,null,null,"連絡先"]

{"sheet":"Sheet1","index":1,"n_rows":32,"n_cols":15,"rows_kept":32,"cut":false,"hidden":false,"merged":[]}
[null,null,null,null,null,null,null,null,null,null,"体重制限"]
["Ａ","社馬連Ｂ相当","男",1,1,1,null,"会員（社馬連資格保有）","一般班",null,"✔",null,"申請",null,"(株)魚国総本社馬術部"]
["Ｂ","社馬連Ｂ’相当","女",2,2,null,null,"会員（社馬連資格未登録）","ビギナー班",null,null,null,null,null,"警視庁乗馬同好会"]
["Ｂ’","社馬連Ｃ相当",null,3,null,null,null,"非会員",null,null,null,null,null,null,"皇宮警察本部"]
["Ｃ","無",null,4,null,null,null,null,null,null,null,null,null,null,"社会人昭和大学ライディングチーム"]
["Ｄ",null,null,5,null,null,null,null,null,null,null,null,null,null,"衆議院乗馬会"]
["Ｄ’",null,null,null,null,null,null,null,null,null,null,null,null,null,"SOMPOホールディングス馬術部"]
[null,null,null,null,null,null,null,null,null,null,null,null,null,null,"東京都庁体育会乗馬部"]
[null,null,null,null,null,null,null,null,null,null,null,null,null,null,"特別区文化体育会乗馬部"]
[null,null,null,null,null,null,null,null,null,null,null,null,null,null,"トッパン・フォームズ(株)馬術部"]
[null,null,null,null,null,null,null,null,null,null,null,null,null,null,"日本アイ・ビー・エム(株)馬術部"]
[null,null,null,null,null,null,null,null,null,null,null,null,null,null,"(株)日本馬事普及馬事研究部"]
[null,null,null,null,null,null,null,null,null,null,null,null,null,null,"パナソニック馬術部"]
[null,null,null,null,null,null,null,null,null,null,null,null,null,null,"パナソニックシステムネットワークス（株）馬術部"]
[null,null,null,null,null,null,null,null,null,null,null,null,null,null,"(株)日立国際電気馬術部"]
[null,null,null,null,null,null,null,null,null,null,null,null,null,null,"富士通(株)馬術部"]
[null,null,null,null,null,null,null,null,null,null,null,null,null,null,"防衛省乗馬同好会"]
[null,null,null,null,null,null,null,null,null,null,null,null,null,null,"三井物産(株)乗馬部"]
[null,null,null,null,null,null,null,null,null,null,null,null,null,null,"レッキス工業(株)馬術部"]
[null,null,null,null,null,null,null,null,null,null,null,null,null,null,"青波馬術愛好会"]
[null,null,null,null,null,null,null,null,null,null,null,null,null,null,"伊藤忠商事相互会乗馬部"]
[null,null,null,null,null,null,null,null,null,null,null,null,null,null,"茨城県庁乗馬部"]
[null,null,null,null,null,null,null,null,null,null,null,null,null,null,"エグゼクティブコーチ(株)馬術部"]
[null,null,null,null,null,null,null,null,null,null,null,null,null,null,"NTT馬術部"]
[null,null,null,null,null,null,null,null,null,null,null,null,null,null,"グーグル合同会社馬術部"]
[null,null,null,null,null,null,null,null,null,null,null,null,null,null,"スリーエムジャパン馬術愛好会"]
[null,null,null,null,null,null,null,null,null,null,null,null,null,null,"セゾングループ乗馬部"]
[null,null,null,null,null,null,null,null,null,null,null,null,null,null,"ソニー馬術部"]
[null,null,null,null,null,null,null,null,null,null,null,null,null,null,"ＴＭＧ 乗馬同好会"]
[null,null,null,null,null,null,null,null,null,null,null,null,null,null,"税理士法人山田＆パートナーズ乗馬同好会"]
[null,null,null,null,null,null,null,null,null,null,null,null,null,null,"(株)ワールドマーケット乗馬部"]
[null,null,null,null,null,null,null,null,null,null,null,null,null,null,"YS乗馬同好会"]